bitfinex-derivatives/quotes_SOLF0:USTF0_20250730
["timestamp","ask_amount","ask_price","bid_price","bid_amount"]
[1753864967137,3.16,181.22,181.19,2.94]
[1753864967538,3.16,181.22,181.16,2.71338581]
[1753864967750,3.16,181.21,181.17,2.94]
[1753864968038,3.16,181.21,181.18,2.94]
[1753864968240,2.71338581,181.24,181.16,2.71338581]
[1753864968436,9.03473353,181.23,181.17,2.94]
[1753864968637,3.16,181.21,181.17,2.94]
[1753864969246,3.16,181.21,181.18,2.71338581]
[1753864969645,3.16,181.21,181.2,5.519]
[1753864969942,3.16,181.21,181.2,8.459]
[1753864970640,3.16,181.24,181.2,5.65338581]
[1753864970846,3.16,181.24,181.21,2.94]
[1753864971245,4.61445189,181.31,181.24,2.94]
[1753864971436,12.5211135,181.3,181.28,2.71338581]
[1753864971642,8.6244,181.35,181.29,3.18]
[1753864971941,3.11,181.33,181.3,3.18]
[1753864972142,8.99679027,181.32,181.31,3.18]
[1753864972341,7.72445189,181.39,181.31,3.18]
[1753864972641,19.63901284,181.38,181.37,3.18]
[1753864972849,16.52737439,181.38,181.37,3.18]
[1753864973041,12.42673432,181.38,181.37,8.6938]
[1753864973247,8.99025681,181.38,181.37,8.6938]
[1753864973447,3.11,181.37,181.34,2.71338581]
[1753864973740,3.11,181.37,181.33,3.18]
[1753864973939,3.11,181.37,181.34,3.18]
[1753864974143,3.11,181.4,181.35,3.18]
[1753864974338,12.33852991,181.39,181.37,3.18]
[1753864974541,12.33852991,181.39,181.36,2.71338581]
[1753864974542,3.11,181.38,181.36,2.71338581]
[1753864974744,3.11,181.38,181.36,5.89338581]
[1753864975047,3.11,181.37,181.36,5.89338581]
[1753864975247,3.11,181.4,181.28,118.44]
[1753864975549,3.11,181.4,181.36,5.89338581]
[1753864975748,3.11,181.4,181.36,11.40728581]
[1753864976047,3.11,181.4,181.36,5.89338581]
[1753864976240,3.11,181.4,181.33,8.695]
[1753864976647,5.5138,181.38,181.33,8.695]
[1753864976946,2.71338581,181.41,181.33,8.695]
[1753864977143,3.11,181.39,181.33,8.695]
[1753864977337,3.11,181.37,181.33,8.695]
[1753864977747,5.5141,181.36,181.32,2.71338581]
[1753864977940,2.71338581,181.41,181.32,2.71338581]
[1753864978145,3.11,181.39,181.34,3.18]
[1753864978444,3.11,181.4,181.32,5.89338581]
[1753864979448,2.71338581,181.41,181.33,8.6949]
[1753864979449,3.11,181.36,181.33,8.6949]
[1753864979639,5.514,181.37,181.33,8.6949]
[1753864979840,5.5141,181.36,181.33,3.18]
[1753864980158,3.11,181.35,181.29,124.29338581]
[1753864980451,3.11,181.34,181.29,118.4]
[1753864980641,3.11,181.34,181.28,5.5165]
[1753864980947,5.5159,181.31,181.27,2.71338581]
[1753864981140,3.11,181.3,181.25,5.89338581]
[1753864981449,3.11,181.3,181.25,2.71338581]
[1753864981646,3.11,181.29,181.25,2.71338581]
[1753864981848,3.11,181.29,181.28,3.18]
[1753864982240,3.11,181.29,181.27,5.5166]
[1753864982446,3.11,181.28,181.26,3.18]
[1753864983052,2.71338581,181.33,181.27,3.18]
[1753864983252,3.11,181.32,181.27,3.18]
[1753864983449,5.5159,181.31,181.27,3.18]
[1753864983652,3.11,181.3,181.27,3.18]
[1753864984151,5.5159,181.31,181.27,3.18]
[1753864984352,3.11,181.29,181.28,3.18]
[1753864984854,5.5157,181.31,181.26,3.18]
[1753864985054,3.11,181.28,181.27,3.18]
[1753864985853,3.11,181.3,181.26,3.18]
[1753864986050,3.11,181.31,181.28,3.18]
[1753864986257,3.11,181.31,181.3,3.18]
[1753864986856,2.71338581,181.35,181.28,3.18]
[1753864987056,3.11,181.34,181.25,5.89338581]
[1753864987257,3.11,181.3,181.23,495.29338581]
[1753864987754,3.11,181.3,181.24,3.18]
[1753864988348,3.11,181.3,181.24,8.6977]
[1753864988554,3.11,181.3,181.24,5.5177]
[1753864988748,8.626,181.3,181.25,3.18]
[1753864988948,3.11,181.29,181.26,3.18]
[1753864990457,3.11,181.29,181.25,3.18]
[1753864990656,3.11,181.28,181.26,3.18]
[1753864990856,3.11,181.29,181.26,3.18]
[1753864991056,3.11,181.27,181.26,3.18]
[1753864991358,3.11,181.27,181.24,5.5177]
[1753864991557,3.11,181.26,181.25,3.18]
[1753864992459,3.11,181.26,181.24,5.5177]
[1753864992660,3.11,181.25,181.24,3.18]
[1753864993262,3.11,181.25,181.24,8.6978]
[1753864993460,3.11,181.31,181.24,3.18]
[1753864994758,3.11,181.29,181.26,3.18]
[1753864994959,3.11,181.28,181.27,3.18]
[1753864995562,5.516,181.3,181.27,3.18]
[1753864995764,3.11,181.29,181.27,3.18]
[1753864995965,5.516,181.3,181.27,3.18]
[1753864996162,3.11,181.29,181.27,3.18]
[1753864996362,3.11,181.29,181.28,3.18]
[1753864997264,3.11,181.29,181.26,3.18]
[1753864997867,3.11,181.28,181.27,3.18]
[1753864998066,3.11,181.28,181.25,8.6973]
[1753864998264,3.11,181.27,181.26,3.18]
[1753864998767,3.11,181.27,181.26,8.6972]
[1753864998964,3.11,181.28,181.27,3.18]
[1753864999868,3.11,181.28,181.25,8.6974]
[1753865000070,3.11,181.27,181.26,3.18]
[1753865000759,3.11,181.26,181.25,8.6974]
[1753865001269,5.516,181.3,181.24,8.23108581]
[1753865001470,3.1,181.25,181.24,11.17108581]
[1753865001768,3.1,181.27,181.25,2.94]
[1753865001965,3.1,181.27,181.26,2.94]
[1753865002668,5.5161,181.3,181.25,5.5174]
[1753865002669,3.1,181.29,181.25,5.5174]
[1753865002869,3.1,181.28,181.27,2.94]
[1753865004869,3.1,181.3,181.27,2.94]
[1753865005173,3.1,181.3,181.27,5.5168]
[1753865005373,3.1,181.3,181.29,2.94]
[1753865005968,3.1,181.3,181.27,2.94]
[1753865006867,3.1,181.33,181.27,2.94]
[1753865007274,8.6151,181.33,181.29,5.5162]
[1753865007473,3.1,181.32,181.29,8.4562]
[1753865008271,3.1,181.32,181.3,5.5158]
[1753865008472,3.1,181.32,181.31,2.94]
[1753865009074,3.1,181.33,181.32,2.94]
[1753865009475,3.1,181.39,181.32,5.65338581]
[1753865009675,3.1,181.36,181.33,2.94]
[1753865010076,3.1,181.41,181.33,2.94]
[1753865010273,8.6132,181.39,181.34,5.5145]
[1753865010478,3.1,181.38,181.35,2.94]
[1753865010977,3.1,181.37,181.36,2.94]
[1753865011580,3.1,181.37,181.34,11.16808581]
[1753865011774,5.5139,181.37,181.33,5.515]
[1753865011976,3.1,181.36,181.31,2.71338581]
[1753865012172,3.1,181.36,181.31,5.65338581]
[1753865013071,3.1,181.36,181.31,2.94]
[1753865013386,3.1,181.34,181.31,11.16888581]
[1753865013874,3.1,181.34,181.32,2.94]
[1753865014269,3.1,181.33,181.32,2.94]
[1753865014474,3.1,181.34,181.32,5.5153]
[1753865014674,3.1,181.33,181.29,5.65338581]
[1753865014875,5.5154,181.32,181.29,5.65338581]
[1753865015076,2.71338581,181.36,181.29,5.65338581]
[1753865015272,3.1,181.35,181.3,2.94]
[1753865015573,3.1,181.33,181.3,2.94]
[1753865015781,3.1,181.32,181.29,2.71338581]
[1753865015981,3.1,181.32,181.31,2.94]
[1753865017082,5.5145,181.35,181.3,5.5156]
[1753865017382,3.1,181.33,181.32,2.94]
[1753865018785,3.1,181.33,181.3,8.4556]
[1753865019384,8.6151,181.33,181.3,2.94]
[1753865019590,3.1,181.37,181.29,2.71338581]
[1753865019790,3.1,181.35,181.29,2.71338581]
[1753865020089,5.5152,181.33,181.29,2.71338581]
[1753865020287,5.5152,181.33,181.29,5.65338581]
[1753865020288,3.1,181.32,181.29,5.65338581]
[1753865020587,3.1,181.31,181.3,2.94]
[1753865021494,5.5154,181.32,181.29,2.71338581]
[1753865021689,3.1,181.3,181.29,5.65338581]
[1753865022390,3.1,181.3,181.27,5.65338581]
[1753865022686,3.1,181.3,181.24,2.94]
[1753865022992,3.1,181.29,181.22,2.71338581]
[1753865023291,2.71338581,181.3,181.22,8.23168581]
[1753865023493,3.1,181.24,181.23,2.94]
[1753865023693,3.1,181.28,181.23,2.94]
[1753865023887,3.1,181.28,181.25,5.5172]
[1753865024191,3.1,181.27,181.26,2.94]
[1753865024392,3.1,181.28,181.27,2.94]
[1753865024690,3.1,181.3,181.27,2.94]
[1753865024897,3.1,181.33,181.28,2.94]
[1753865025193,3.1,181.31,181.28,2.94]
[1753865025394,3.1,181.29,181.28,2.94]
[1753865025788,3.1,181.3,181.29,2.94]
[1753865026392,3.1,181.3,181.29,8.4562]
[1753865026891,3.1,181.3,181.29,2.94]
[1753865028199,3.1,181.3,181.26,5.65338581]
[1753865028386,5.5166,181.28,181.24,2.71338581]
[1753865028592,3.1,181.27,181.24,11.17088581]
[1753865028897,3.1,181.31,181.24,2.71338581]
[1753865029093,3.1,181.28,181.26,2.94]
[1753865029393,3.1,181.27,181.26,2.94]
[1753865030197,2.71338581,181.34,181.27,2.94]
[1753865030492,3.1,181.31,181.28,2.94]
[1753865030698,3.1,181.3,181.29,2.94]
[1753865031592,5.5154,181.32,181.28,8.22968581]
[1753865031793,3.26,181.29,181.28,11.29968581]
[1753865032094,7.33918412,181.36,181.29,8.5862]
[1753865032095,3.26,181.3,181.29,8.5862]
[1753865032295,3.26,181.31,181.3,3.07]
[1753865035700,3.26,181.33,181.26,5.78338581]
[1753865035996,3.26,181.31,181.24,3.07]
[1753865036192,5.5161,181.3,181.25,5.5172]
[1753865036395,3.26,181.29,181.25,5.5172]
[1753865036693,3.26,181.29,181.25,8.5872]
[1753865036894,3.26,181.28,181.26,3.07]
[1753865037096,3.26,181.27,181.26,3.07]
[1753865037591,3.26,181.27,181.26,8.5872]
[1753865037992,3.26,181.29,181.26,3.07]
[1753865038196,2.71338581,181.35,181.27,3.07]
[1753865038396,3.26,181.33,181.27,3.07]
[1753865038600,5.5153,181.32,181.28,5.5163]
[1753865038795,3.26,181.31,181.28,8.5863]
[1753865039486,3.26,181.33,181.27,3.07]
[1753865040596,5.5156,181.32,181.28,5.5163]
[1753865040797,3.26,181.33,181.27,3.07]
[1753865041199,3.26,181.29,181.24,2.71338581]
[1753865041601,3.26,181.29,181.24,5.78338581]
[1753865041804,3.26,181.29,181.26,8.5871]
[1753865042407,3.26,181.28,181.27,3.07]
[1753865042608,3.26,181.28,181.27,8.5868]
[1753865043104,3.26,181.28,181.27,3.07]
[1753865044207,3.26,181.28,181.26,8.23048581]
[1753865044703,3.26,181.28,181.22,2.71338581]
[1753865045011,3.26,181.26,181.2,2.71338581]
[1753865045307,5.518,181.24,181.2,5.5188]
[1753865045496,3.26,181.23,181.2,5.5188]
[1753865046305,3.26,181.23,181.2,8.5888]
[1753865046513,3.26,181.22,181.19,8.5892]
[1753865047609,3.26,181.21,181.19,5.5192]
[1753865047810,3.26,181.21,181.2,3.07]
[1753865048005,3.26,181.21,181.2,8.589]
[1753865049503,3.26,181.21,181.2,3.07]
[1753865049708,2.71338581,181.25,181.18,2.71338581]
[1753865049909,3.26,181.24,181.16,124.10338581]
[1753865050109,3.26,181.24,181.16,129.62358581]
[1753865050706,3.26,181.24,181.17,5.5198]
[1753865051013,3.26,181.24,181.16,124.10338581]
[1753865051210,5.519,181.21,181.17,8.5896]
[1753865051505,3.26,181.22,181.16,118.32]
[1753865051706,5.5199,181.17,181.16,118.32]
[1753865051906,3.26,181.2,181.13,201.38088514]
[1753865052106,3.26,181.2,181.13,195.85998514]
[1753865053007,5.5198,181.18,181.13,3.07]
[1753865053206,3.26,181.2,181.12,5.78338581]
[1753865053406,3.26,181.2,181.13,3.07]
[1753865053608,3.26,181.17,181.15,3.07]
[1753865053808,3.26,181.16,181.15,3.07]
[1753865054807,3.26,181.16,181.13,5.5209]
[1753865055112,3.26,181.16,181.12,5.78338581]
[1753865055513,3.26,181.14,181.12,2.71338581]
[1753865055709,3.26,181.14,181.13,3.07]
[1753865057209,3.26,181.14,181.12,2.71338581]
[1753865057411,3.26,181.2,181.12,5.78338581]
[1753865057920,3.26,181.19,181.12,11.30458581]
[1753865058215,3.26,181.19,181.12,8.5912]
[1753865058904,5.97338581,181.19,181.12,8.5912]
[1753865059111,3.26,181.15,181.13,3.07]
[1753865059310,3.26,181.15,181.09,2.71338581]
[1753865059517,2.71338581,181.13,181.06,317.53225746]
[1753865059815,3.26,181.11,181.08,3.07]
[1753865060013,3.26,181.16,181.08,2.71338581]
[1753865060219,5.5209,181.14,181.09,3.07]
[1753865060414,3.26,181.13,181.1,5.5218]
[1753865060611,3.26,181.12,181.11,3.07]
[1753865061013,3.26,181.12,181.08,2.71338581]
[1753865061212,3.26,181.12,181.08,5.78338581]
[1753865061414,3.26,181.12,181.09,3.07]
[1753865062017,8.7816,181.12,181.09,8.5923]
[1753865062210,3.05,181.11,181.09,3.07]
[1753865062411,3.05,181.1,181.09,3.07]
[1753865063315,3.05,181.1,181.09,8.5923]
[1753865063617,5.5212,181.13,181.09,3.07]
[1753865063823,3.05,181.11,181.09,3.07]
[1753865064515,3.05,181.11,181.09,8.5923]
[1753865065120,3.05,181.1,181.09,8.5923]
[1753865068622,3.05,181.12,181.09,3.07]
[1753865068815,3.05,181.12,181.11,3.07]
[1753865069211,3.05,181.12,181.1,126.63528581]
[1753865069412,2.71338581,181.19,181.1,121.11338581]
[1753865069619,3.05,181.18,181.11,3.07]
[1753865070727,3.05,181.16,181.13,3.07]
[1753865071025,3.05,181.18,181.13,3.07]
[1753865071219,3.05,181.18,181.12,2.71338581]
[1753865071524,3.05,181.18,181.15,3.07]
[1753865071921,3.05,181.17,181.15,8.5904]
[1753865072116,3.05,181.16,181.15,8.5904]
[1753865073626,3.05,181.18,181.15,3.07]
[1753865074123,5.5191,181.2,181.15,8.5902]
[1753865074316,3.05,181.17,181.15,8.5902]
[1753865074517,3.05,181.17,181.16,3.07]
[1753865075426,3.05,181.16,181.15,8.5902]
[1753865076825,3.05,181.22,181.18,3.07]
[1753865077017,3.05,181.22,181.18,2.71338581]
[1753865077219,3.05,181.22,181.19,3.07]
[1753865078120,5.5184,181.22,181.19,3.07]
[1753865078328,3.05,181.21,181.18,2.71338581]
[1753865078830,3.05,181.2,181.18,2.71338581]
[1753865079929,3.05,181.2,181.16,118.38]
[1753865080429,3.05,181.18,181.16,118.38]
[1753865082136,3.05,181.18,181.15,8.5904]
[1753865084636,3.05,181.17,181.14,3.07]
[1753865085236,8.5699,181.17,181.14,3.07]
[1753865085443,2.71338581,181.19,181.12,118.38]
[1753865085645,3.05,181.18,181.12,118.38]
[1753865086342,3.05,181.18,181.12,123.9013]
[1753865086746,3.05,181.18,181.13,3.07]
[1753865086934,3.05,181.17,181.14,3.07]
[1753865090047,3.05,181.16,181.13,3.07]
[1753865090248,3.05,181.16,181.12,123.9013]
[1753865090445,3.05,181.16,181.12,126.9713]
[1753865091037,3.05,181.16,181.13,3.07]
[1753865093044,3.05,181.16,181.14,3.04]
[1753865093247,3.03,181.15,181.14,3.04]
[1753865095245,3.03,181.2,181.13,5.75338581]
[1753865095451,3.03,181.19,181.16,3.04]
[1753865095750,7.33243046,181.25,181.17,3.04]
[1753865095949,16.2254867,181.24,181.17,2.71338581]
[1753865096148,2.71338581,181.25,181.19,3.04]
[1753865096149,19.2554867,181.23,181.19,3.04]
[1753865096446,19.2554867,181.23,181.17,2.71338581]
[1753865096447,3.03,181.23,181.2,3.04]
[1753865096845,3.03,181.22,181.21,3.04]
[1753865100054,5.5172,181.26,181.21,5.75338581]
[1753865100247,3.03,181.23,181.22,3.04]
[1753865100648,3.03,181.25,181.24,3.04]
[1753865100849,3.03,181.3,181.22,5.75338581]
[1753865101045,2.71338581,181.23,181.13,9.13042323]
[1753865101244,16.2120779,181.29,181.13,3.04]
[1753865101245,3.03,181.2,181.13,3.04]
[1753865101756,5.5194,181.19,181.13,8.5611]
[1753865101957,5.5194,181.19,181.12,2.71338581]
[1753865101958,3.03,181.18,181.14,3.04]
[1753865102256,8.23228581,181.21,181.15,3.04]
[1753865102455,3.03,181.19,181.15,3.04]
[1753865103146,3.03,181.21,181.18,3.04]
[1753865103349,3.03,181.22,181.15,3.04]
[1753865103552,4.02354768,181.21,181.15,3.04]
[1753865103854,2.71338581,181.23,181.14,2.71338581]
[1753865103855,3.03,181.19,181.17,3.04]
[1753865104253,3.03,181.19,181.18,3.04]
[1753865106959,3.03,181.21,181.18,3.04]
[1753865108160,3.03,181.2,181.19,3.04]
[1753865109459,5.5181,181.23,181.18,5.5195]
[1753865109664,7.64904465,181.27,181.21,3.04]
[1753865109854,2.71338581,181.28,181.21,3.04]
[1753865109855,19.2725718,181.26,181.21,3.04]
[1753865110157,3.03,181.23,181.21,3.04]
[1753865110363,3.03,181.23,181.22,3.04]
[1753865112063,3.03,181.25,181.22,5.5184]
[1753865112262,3.03,181.25,181.24,3.04]
[1753865112660,3.03,181.29,181.24,5.75338581]
[1753865112861,3.03,181.27,181.26,3.04]
[1753865113663,3.03,181.29,181.25,8.5574]
[1753865113860,5.5161,181.3,181.25,8.5574]
[1753865114060,3.03,181.26,181.25,8.5574]
[1753865114564,3.03,181.26,181.22,5.75338581]
[1753865114758,3.03,181.26,181.22,3.04]
[1753865115363,3.03,181.26,181.2,5.75338581]
[1753865115663,2.71338581,181.28,181.2,5.75338581]
[1753865115861,3.03,181.25,181.18,5.75338581]
[1753865116476,5.5183,181.23,181.19,5.5191]
[1753865116767,3.03,181.22,181.18,3.04]
[1753865116966,3.03,181.22,181.16,5.75338581]
[1753865117370,5.5187,181.21,181.17,5.5196]
[1753865117571,3.03,181.2,181.17,8.5596]
[1753865117868,3.03,181.19,181.16,2.71338581]
[1753865118063,3.03,181.19,181.11,11.84380904]
[1753865118064,5.74338581,181.19,181.11,11.84380904]
[1753865118266,3.03,181.18,181.11,2.71338581]
[1753865118569,5.52,181.17,181.12,3.04]
[1753865118867,3.03,181.15,181.12,3.04]
[1753865119268,3.03,181.15,181.14,5.5208]
[1753865119469,3.03,181.15,181.14,8.5608]
[1753865119767,3.03,181.18,181.15,5.5202]
[1753865119971,3.03,181.18,181.17,3.04]
[1753865120283,3.03,181.18,181.1,5.75338581]
[1753865120471,3.03,181.17,181.11,3.04]
[1753865120868,3.03,181.17,181.13,5.5209]
[1753865121068,3.03,181.17,181.1,2.71338581]
[1753865121269,3.03,181.17,181.11,3.04]
[1753865121465,2.71338581,181.18,181.08,118.3]
[1753865121774,3.24,181.15,181.09,3.02]
[1753865122372,3.24,181.14,181.09,3.02]
[1753865122665,3.24,181.17,181.11,3.02]
[1753865122871,3.24,181.16,181.13,8.5408]
[1753865123178,3.24,181.16,181.13,3.02]
[1753865123369,3.24,181.15,181.13,3.02]
[1753865123566,3.24,181.14,181.13,8.5411]
[1753865124362,3.24,181.16,181.1,2.71338581]
[1753865124566,3.24,181.16,181.11,3.02]
[1753865124874,3.24,181.16,181.13,5.5208]
[1753865125070,3.24,181.15,181.14,3.02]
[1753865125266,3.24,181.15,181.13,5.5208]
[1753865125468,3.24,181.14,181.13,8.5408]
[1753865125673,3.24,181.19,181.13,3.02]
[1753865126569,3.24,181.18,181.15,3.02]
[1753865126969,3.24,181.18,181.08,121.01338581]
[1753865127171,3.24,181.21,181.16,3.02]
[1753865127366,2.71338581,181.22,181.18,3.02]
[1753865127574,3.24,181.2,181.19,3.02]
[1753865128376,3.24,181.24,181.18,3.02]
[1753865129276,3.24,181.22,181.19,3.02]
[1753865129674,8.7584,181.22,181.19,3.02]
[1753865129874,3.24,181.21,181.17,2.71338581]
[1753865130076,3.24,181.21,181.17,5.73338581]
[1753865130280,3.24,181.2,181.16,8.5399]
[1753865131379,3.24,181.2,181.17,3.02]
[1753865131977,8.759,181.2,181.17,3.02]
[1753865132177,5.519,181.2,181.17,3.02]
[1753865132479,3.24,181.18,181.17,3.02]
[1753865132773,3.24,181.22,181.17,8.5399]
[1753865132982,3.24,181.22,181.19,3.02]
[1753865133172,2.71338581,181.25,181.19,3.02]
[1753865133377,5.5183,181.23,181.2,3.02]
[1753865133577,3.24,181.21,181.2,3.02]
[1753865133971,3.24,181.23,181.19,2.71338581]
[1753865134174,375.63904465,181.3,181.1,9.13042323]
[1753865134175,3.24,181.25,181.21,2.71338581]
[1753865134380,5.5174,181.25,181.22,3.02]
[1753865134578,3.24,181.24,181.22,3.02]
[1753865135571,5.5172,181.26,181.23,3.02]
[1753865135778,2.71338581,181.29,181.22,5.5183]
[1753865135981,3.24,181.27,181.23,2.71338581]
[1753865136182,3.24,181.28,181.24,8.5375]
[1753865136387,3.24,181.28,181.26,3.02]
[1753865136682,3.24,181.28,181.23,2.71338581]
[1753865136683,8.756,181.3,181.27,3.02]
[1753865136887,3.24,181.29,181.27,3.02]
[1753865137181,3.24,181.31,181.25,5.73338581]
[1753865137386,3.24,181.31,181.23,11.25138581]
[1753865137886,3.24,181.31,181.23,5.73338581]
[1753865138682,3.24,181.29,181.23,3.02]
[1753865139087,3.24,181.29,181.21,5.73338581]
[1753865139282,3.24,181.25,181.17,5.73338581]
[1753865139484,3.24,181.25,181.18,3.02]
[1753865139884,2.71338581,181.22,181.16,3.02]
[1753865140184,3.24,181.18,181.16,3.02]
[1753865140384,3.24,181.17,181.16,3.02]
[1753865140786,122.91904465,181.3,181.16,3.02]
[1753865140787,5.519,181.2,181.16,3.02]
[1753865140985,3.24,181.19,181.16,3.02]
[1753865141385,3.24,181.19,181.18,3.02]
[1753865141890,5.5187,181.21,181.18,3.02]
[1753865142091,3.24,181.2,181.18,3.02]
[1753865142587,2.71338581,181.25,181.2,3.02]
[1753865142792,3.24,181.21,181.18,3.02]
[1753865142991,3.24,181.21,181.2,3.02]
[1753865143892,3.24,181.23,181.2,3.02]
[1753865144194,3.24,181.23,181.22,3.02]
[1753865144788,5.5175,181.25,181.19,2.71338581]
[1753865144789,3.24,181.24,181.23,3.02]
[1753865145192,3.24,181.23,181.22,3.02]
[1753865145699,3.24,181.25,181.21,2.71338581]
[1753865146004,3.24,181.27,181.23,3.02]
[1753865146701,5.5174,181.26,181.23,3.02]
[1753865146902,3.24,181.25,181.23,3.02]
[1753865147294,3.24,181.25,181.24,3.02]
[1753865148003,2.71338581,181.3,181.24,3.02]
[1753865148201,4.06050362,181.29,181.25,3.02]
[1753865148499,3.24,181.27,181.25,3.02]
[1753865148697,3.24,181.27,181.26,3.02]
[1753865150198,5.5163,181.29,181.26,3.02]
[1753865150496,3.24,181.27,181.26,3.02]
[1753865151099,3.24,181.29,181.26,3.02]
[1753865151299,3.24,181.31,181.23,2.71338581]
[1753865151492,5.5165,181.28,181.23,2.71338581]
[1753865151696,8.4765,181.28,181.24,3.13]
[1753865152297,2.96,181.28,181.24,5.5175]
[1753865152596,2.96,181.28,181.25,3.13]
[1753865153298,5.516,181.3,181.25,5.84338581]
[1753865153508,2.96,181.29,181.28,3.13]
[1753865153897,2.96,181.3,181.28,3.13]
[1753865154195,2.96,181.33,181.28,3.13]
[1753865155102,2.96,181.33,181.27,2.71338581]
[1753865155303,2.96,181.33,181.29,3.13]
[1753865156106,5.5159,181.3,181.29,3.13]
[1753865156303,8.4759,181.3,181.29,3.13]
[1753865160005,2.96,181.33,181.29,5.84338581]
[1753865160202,2.96,181.33,181.32,3.13]
[1753865160613,2.96,181.38,181.32,3.13]
[1753865161515,2.96,181.34,181.33,3.13]
[1753865162105,5.5147,181.35,181.33,3.13]
[1753865162304,2.96,181.35,181.34,3.13]
[1753865162806,2.96,181.37,181.34,3.13]
[1753865163005,2.96,181.4,181.34,3.13]
[1753865163516,2.96,181.35,181.34,3.13]
[1753865163910,5.5138,181.38,181.34,3.13]
[1753865164111,5.5138,181.38,181.35,3.13]
[1753865164313,2.96,181.37,181.36,3.13]
[1753865164616,5.5139,181.37,181.35,3.13]
[1753865164815,2.96,181.36,181.35,3.13]
[1753865166017,8.4741,181.36,181.35,3.13]
[1753865166617,5.5139,181.37,181.35,3.13]
[1753865166916,2.96,181.36,181.35,3.13]
[1753865169819,2.96,181.35,181.34,5.84338581]
[1753865173723,2.96,181.4,181.35,3.13]
[1753865173925,2.96,181.4,181.36,3.13]
[1753865174426,5.5134,181.39,181.36,3.13]
[1753865174622,2.96,181.37,181.36,3.13]
[1753865176425,2.71338581,181.43,181.36,5.5141]
[1753865176630,2.96,181.42,181.37,3.13]
[1753865176928,5.5134,181.39,181.37,3.13]
[1753865177224,2.96,181.38,181.37,3.13]
[1753865177627,5.5135,181.38,181.35,5.5142]
[1753865177928,2.96,181.37,181.36,3.13]
[1753865178124,8.4738,181.37,181.36,3.13]
[1753865178330,2.96,181.37,181.36,3.13]
[1753865184230,2.96,181.37,181.36,3.01]
[1753865184637,5.5132,181.4,181.36,3.01]
[1753865184834,3.11,181.42,181.37,2.71338581]
[1753865185033,3.11,181.42,181.38,3.01]
[1753865186036,3.11,181.39,181.38,3.01]
[1753865186429,3.11,181.38,181.34,2.71338581]
[1753865186727,3.11,181.38,181.35,3.01]
[1753865187139,3.11,181.38,181.34,2.71338581]